[Event "105th British-ch 2018"]
[Site "Hull"]
[Date "2018.07.29"]
[Round "2"]
[White "Moore, Graham J"]
[Black "Macklin, Paul"]
[Result "1/2-1/2"]
[ECO "B06"]
[WhiteElo "2218"]
[BlackElo "2363"]
[Annotator "NA"]
[PlyCount "61"]
[EventDate "2018.07.28"]
[EventType "swiss"]
[EventCountry "GBR"]
[SourceTitle "playchess.com"]
[Source "ChessBase"]
[SourceQuality "1"]
[TimeControl "40/5400+30:1800+30"]

1. Nf3 {[%emt 0:00:04]} g6 {[%emt 0:02:41]} 2. e4 {[%emt 0:02:27]} Bg7 {[%emt 0:00:07]} 3. d4 {[%emt 0:00:09]} d6 {[%emt 0:00:16]} 4. Bc4 {[%emt 0:00:15]} Nc6 {[%emt 0:02:24]} 5. O-O {[%emt 0:04:27]} Nf6 {[%emt 0:01:01]} 6. Qe2 {[%emt 0:02:50]} Bg4 {[%emt 0:03:22]} 7. Bb5 {[%emt 0:00:18]} O-O {[%emt 0:00:55]} 8. c3 {[%emt 0:05:44]} Nd7 {[%emt 0:05:02]} 9. Nbd2 {[%emt 0:07:45]} e5 {[%emt 0:10:55]} 10. h3 {[%emt 0:01:23]} Bxf3 {[%emt 0:04:16]} 11. Nxf3 {[%emt 0:00:08]} exd4 {[%emt 0:01:42]} 12. Bxc6 {[%emt 0:00:08]} bxc6 {[%emt 0:00:12]} 13. cxd4 {[%emt 0:02:50]} Re8 {[%emt 0:00:06]} 14. Qc2 {[%emt 0:03:45]} c5 {[%emt 0:19:05]} 15. Be3 {[%emt 0:15:27]} cxd4 {[%emt 0:29:21]} 16. Bxd4 {[%emt 0:03:33]} Bxd4 {[%emt 0:00:47]} 17. Nxd4 {[%emt 0:00:07]} Nc5 {[%emt 0:00:27]} 18. Rfe1 {[%emt 0:06:28]} Qh4 {[%emt 0:04:12]} 19. Nf3 {[%emt 0:01:35]} Qf4 {[%emt 0:00:49]} 20. e5 {[%emt 0:00:38]} Rab8 {[%emt 0:01:56]} 21. Rad1 {[%emt 0:04:14]} Ne6 {[%emt 0:00:12]} 22. b3 {[%emt 0:09:42]} dxe5 {[%emt 0:04:44]} 23. Rxe5 {[%emt 0:04:00]} Red8 {[%emt 0:00:39]} 24. Rde1 {[%emt 0:09:36]} Rd6 {[%emt 0:01:20]} 25. Ra5 {[%emt 0:03:26]} a6 {[%emt 0:06:46]} 26. Qe2 {[%emt 0:02:13]} Qb4 {[%emt 0:00:57]} 27. Ra4 {[%emt 0:00:50]} Qb5 {[%emt 0:00:20]} 28. Qe3 {[%emt 0:01:13]} Rbd8 {[%emt 0:00:35]} 29. Re4 {[%emt 0:05:26]} Qf5 {[%emt 0:00:24]} 30. Re5 {[%emt 0:02:32]} Qf6 {[%emt 0:00:44]} 31. Ng5 {[%emt 0:09:13]} 1/2-1/2

[Event "105th British-ch 2018"]
[Site "Hull"]
[Date "2018.07.29"]
[Round "2"]
[White "Kalaiyalahan, Akshaya"]
[Black "Miller, Dominic"]
[Result "1-0"]
[ECO "D78"]
[WhiteElo "2138"]
[BlackElo "2017"]
[Annotator "NA"]
[PlyCount "59"]
[EventDate "2018.07.28"]
[EventType "swiss"]
[EventCountry "GBR"]
[SourceTitle "playchess.com"]
[Source "ChessBase"]
[SourceQuality "1"]
[TimeControl "40/5400+30:1800+30"]

1. d4 {[%emt 0:00:02]} Nf6 {[%emt 0:00:04]} 2. c4 {[%emt 0:00:00]} g6 {[%emt 0:00:04]} 3. g3 {[%emt 0:00:00]} c6 {[%emt 0:00:05]} 4. Bg2 {[%emt 0:00:00]} d5 {[%emt 0:00:04]} 5. Nf3 {[%emt 0:00:09]} Bg7 {[%emt 0:00:05]} 6. O-O {[%emt 0:00:13]} O-O {[%emt 0:00:26]} 7. b3 {[%emt 0:00:36]} dxc4 8. bxc4 {[%emt 0:00:05]} c5 {[%emt 0:01:39]} 9. Bb2 {[%emt 0:00:18]} Qb6 {[%emt 0:00:30]} 10. Qc1 {[%emt 0:00:12]} Ne4 {[%emt 0:01:58]} 11. Nbd2 {[%emt 0:11:32]} Nxd2 12. Qxd2 {[%emt 0:00:13]} Nc6 {[%emt 0:12:34]} 13. Rab1 {[%emt 0:01:21]} Bf5 {[%emt 0:10:33]} 14. dxc5 {[%emt 0:03:32]} Qxc5 {[%emt 0:01:00]} 15. Bxg7 {[%emt 0:00:23]} Kxg7 {[%emt 0:00:12]} 16. Qc3+ {[%emt 0:04:13]} Kg8 {[%emt 0:01:52]} 17. Rb5 {[%emt 0:07:17]} Qd6 {[%emt 0:01:28]} 18. Rxb7 {[%emt 0:03:10]} Rab8 {[%emt 0:01:02]} 19. Rxb8 {[%emt 0:06:05]} Rxb8 {[%emt 0:00:10]} 20. c5 {[%emt 0:05:57]} Qc7 {[%emt 0:03:32]} 21. Nd4 {[%emt 0:08:22]} Nxd4 {[%emt 0:00:19]} 22. Qxd4 {[%emt 0:00:05]} Be6 {[%emt 0:00:52]} 23. a3 {[%emt 0:07:32]} Rb3 {[%emt 0:04:43]} 24. c6 {[%emt 0:04:28]} Rb8 {[%emt 0:00:23]} 25. Rd1 {[%emt 0:01:39]} h5 {[%emt 0:07:19]} 26. h4 {[%emt 0:04:47]} Kh7 {[%emt 0:01:25]} 27. Qf4 {[%emt 0:03:46]} Rc8 {[%emt 0:00:22]} 28. Qxc7 {[%emt 0:00:56]} Rxc7 {[%emt 0:00:02]} 29. Rb1 {[%emt 0:00:27]} Bc8 {[%emt 0:00:09]} 30. Kh2 {[%emt 0:00:45]} 1-0

[Event "105th British-ch 2018"]
[Site "Hull"]
[Date "2018.07.29"]
[Round "2"]
[White "Krzyzanowski, Patryk"]
[Black "Kalavannan, Koby"]
[Result "1/2-1/2"]
[ECO "E61"]
[WhiteElo "2087"]
[BlackElo "2277"]
[Annotator "NA"]
[PlyCount "113"]
[EventDate "2018.07.28"]
[EventType "swiss"]
[EventCountry "GBR"]
[SourceTitle "playchess.com"]
[Source "ChessBase"]
[SourceQuality "1"]
[TimeControl "40/5400+30:1800+30"]

1. d4 {[%emt 0:00:03]} Nf6 {[%emt 0:00:07]} 2. c4 {[%emt 0:00:08]} g6 {[%emt 0:00:05]} 3. Nc3 {[%emt 0:00:14]} Bg7 {[%emt 0:00:06]} 4. Bf4 {[%emt 0:00:22]} d6 {[%emt 0:00:25]} 5. e3 {[%emt 0:00:32]} O-O {[%emt 0:00:21]} 6. Be2 {[%emt 0:01:03]} Nbd7 {[%emt 0:00:22]} 7. Nf3 {[%emt 0:00:18]} b6 {[%emt 0:00:28]} 8. O-O {[%emt 0:00:18]} Bb7 {[%emt 0:00:04]} 9. h3 {[%emt 0:00:39]} Ne4 {[%emt 0:00:10]} 10. Nxe4 {[%emt 0:10:03]} Bxe4 {[%emt 0:00:03]} 11. Ng5 {[%emt 0:00:23]} Bb7 {[%emt 0:01:48]} 12. Bf3 {[%emt 0:21:39]} c6 {[%emt 0:07:06]} 13. Ne4 {[%emt 0:13:55]} h6 {[%emt 0:01:07]} 14. Nc3 {[%emt 0:02:11]} e5 {[%emt 0:01:38]} 15. Bh2 {[%emt 0:00:38]} Qe7 {[%emt 0:15:06]} 16. b4 {[%emt 0:06:34]} Rfd8 {[%emt 0:14:04]} 17. b5 {[%emt 0:02:31]} Nb8 {[%emt 0:00:07]} 18. bxc6 {[%emt 0:00:56]} Nxc6 {[%emt 0:04:29]} 19. Re1 {[%emt 0:03:40]} Rac8 {[%emt 0:01:21]} 20. Nd5 {[%emt 0:33:43]} Qf8 {[%emt 0:11:00]} 21. Rc1 {[%emt 0:05:55]} Na5 {[%emt 0:04:28]} 22. Qa4 {[%emt 0:04:43]} Qe8 {[%emt 0:02:46]} 23. Qb4 {[%emt 0:00:29]} Qe6 {[%emt 0:04:12]} 24. dxe5 {[%emt 0:01:13]} Nc6 {[%emt 0:00:03]} 25. Qa3 {[%emt 0:01:22]} dxe5 {[%emt 0:00:11]} 26. Bg4 {[%emt 0:01:06]} f5 {[%emt 0:00:08]} 27. Bf3 {[%emt 0:00:03]} Bf8 {[%emt 0:01:40]} 28. Qb2 {[%emt 0:00:21]} e4 {[%emt 0:01:09]} 29. Be2 {[%emt 0:00:33]} Bg7 {[%emt 0:01:47]} 30. Qa3 {[%emt 0:02:16]} Bf8 {[%emt 0:00:01]} 31. Qb2 {[%emt 0:00:49]} Bg7 {[%emt 0:02:18]} 32. Qa3 {[%emt 0:01:09]} Kh7 {[%emt 0:00:26]} 33. Red1 {[%emt 0:00:13]} Bf8 {[%emt 0:02:26]} 34. Qb2 {[%emt 0:01:14]} Bg7 {[%emt 0:00:01]} 35. Qb5 {[%emt 0:01:07]} Ne5 {[%emt 0:02:48]} 36. Qa4 {[%emt 0:02:08]} Bxd5 {[%emt 0:01:16]} 37. cxd5 {[%emt 0:00:14]} Rxd5 {[%emt 0:00:13]} 38. Rxc8 {[%emt 0:02:55]} Rxd1+ {[%emt 0:00:11]} 39. Bxd1 {[%emt 0:00:14]} Qxc8 {[%emt 0:00:03]} 40. Qxa7 {[%emt 0:01:57]} Nd7 {[%emt 0:02:35]} 41. Bc7 {[%emt 0:01:41]} b5 {[%emt 0:13:08]} 42. Bb3 {[%emt 0:07:03]} Qe8 {[%emt 0:05:17]} 43. g3 {[%emt 0:13:41]} Ne5 {[%emt 0:03:11]} 44. Kg2 {[%emt 0:06:27]} h5 {[%emt 0:00:47]} 45. Bb6 {[%emt 0:01:29]} Nf3 {[%emt 0:04:05]} 46. Qc7 {[%emt 0:00:39]} Qe5 {[%emt 0:02:27]} 47. Qxe5 {[%emt 0:01:19]} Bxe5 {[%emt 0:00:56]} 48. Ba5 {[%emt 0:00:57]} Bd6 {[%emt 0:00:55]} 49. Bc3 {[%emt 0:00:14]} Ne5 {[%emt 0:02:47]} 50. Bxe5 {[%emt 0:01:21]} Bxe5 {[%emt 0:00:03]} 51. g4 {[%emt 0:00:50]} hxg4 {[%emt 0:00:18]} 52. hxg4 {[%emt 0:00:05]} Kh6 {[%emt 0:00:09]} 53. gxf5 {[%emt 0:00:59]} gxf5 {[%emt 0:00:02]} 54. Be6 {[%emt 0:00:21]} Kg5 {[%emt 0:00:02]} 55. a3 {[%emt 0:00:09]} Bd6 {[%emt 0:00:05]} 56. Bd7 {[%emt 0:00:07]} Bxa3 {[%emt 0:00:01]} 57. Bxb5 {[%emt 0:00:11]} 1/2-1/2

[Event "105th British-ch 2018"]
[Site "Hull"]
[Date "2018.07.29"]
[Round "2"]
[White "Ratnesan, Ranesh"]
[Black "Toma, Katarzyna"]
[Result "0-1"]
[ECO "D76"]
[WhiteElo "2073"]
[BlackElo "2274"]
[Annotator "NA"]
[PlyCount "116"]
[EventDate "2018.07.28"]
[EventType "swiss"]
[EventCountry "GBR"]
[SourceTitle "playchess.com"]
[Source "ChessBase"]
[SourceQuality "1"]
[TimeControl "40/5400+30:1800+30"]

1. d4 {[%emt 0:00:02]} Nf6 {[%emt 0:00:08]} 2. c4 {[%emt 0:00:25]} g6 {[%emt 0:00:19]} 3. Nf3 {[%emt 0:00:42]} Bg7 {[%emt 0:00:15]} 4. g3 {[%emt 0:00:16]} d5 {[%emt 0:02:15]} 5. cxd5 {[%emt 0:01:18]} Nxd5 {[%emt 0:00:23]} 6. Bg2 {[%emt 0:00:42]} Nb6 {[%emt 0:02:46]} 7. O-O {[%emt 0:00:39]} Nc6 {[%emt 0:01:27]} 8. e3 {[%emt 0:01:57]} O-O {[%emt 0:05:53]} 9. Nc3 {[%emt 0:00:30]} Bg4 {[%emt 0:03:51]} 10. h3 {[%emt 0:15:51]} Be6 {[%emt 0:00:44]} 11. Nd2 Qd7 {[%emt 0:08:58]} 12. Kh2 {[%emt 0:00:41]} Rfd8 {[%emt 0:03:25]} 13. b3 {[%emt 0:08:02]} Nxd4 {[%emt 0:07:50]} 14. Bb2 {[%emt 0:06:21]} Nb5 {[%emt 0:01:51]} 15. Nde4 {[%emt 0:05:04]} Nxc3 {[%emt 0:05:36]} 16. Qxd7 {[%emt 0:04:17]} Nxd7 {[%emt 0:02:53]} 17. Bxc3 {[%emt 0:00:37]} Bxc3 {[%emt 0:02:32]} 18. Nxc3 {[%emt 0:00:08]} c6 {[%emt 0:01:34]} 19. Rfd1 {[%emt 0:10:56]} Nc5 {[%emt 0:05:02]} 20. g4 {[%emt 0:02:20]} a5 {[%emt 0:01:18]} 21. Kg3 {[%emt 0:02:31]} f6 {[%emt 0:02:55]} 22. f4 {[%emt 0:06:50]} Kf7 {[%emt 0:03:28]} 23. Bf3 {[%emt 0:05:27]} Ke8 {[%emt 0:08:29]} 24. h4 {[%emt 0:10:02]} Rxd1 {[%emt 0:02:27]} 25. Rxd1 {[%emt 0:01:19]} Rd8 {[%emt 0:00:06]} 26. Rxd8+ {[%emt 0:00:48]} Kxd8 {[%emt 0:00:01]} 27. Bd1 {[%emt 0:00:46]} b5 {[%emt 0:00:20]} 28. Bc2 {[%emt 0:01:39]} b4 {[%emt 0:02:14]} 29. Nb1 {[%emt 0:03:33]} a4 {[%emt 0:04:53]} 30. Nd2 {[%emt 0:01:20]} axb3 {[%emt 0:00:37]} 31. axb3 {[%emt 0:00:13]} Nb7 {[%emt 0:00:54]} 32. g5 {[%emt 0:04:56]} Na5 {[%emt 0:01:34]} 33. Kf3 {[%emt 0:02:20]} c5 {[%emt 0:04:39]} 34. e4 {[%emt 0:01:15]} c4 {[%emt 0:03:04]} 35. bxc4 {[%emt 0:00:18]} Nxc4 {[%emt 0:00:05]} 36. Nb3 {[%emt 0:00:53]} Na3 {[%emt 0:03:32]} 37. Bd1 {[%emt 0:00:24]} Kc7 {[%emt 0:03:42]} 38. Ke3 {[%emt 0:02:12]} Kd6 {[%emt 0:01:10]} 39. Nd4 {[%emt 0:01:23]} Bc4 {[%emt 0:01:21]} 40. Nb3 {[%emt 0:01:13]} Bf7 {[%emt 0:01:53]} 41. Kf3 {[%emt 0:03:22]} f5 {[%emt 0:10:48]} 42. Ke3 {[%emt 0:04:34]} fxe4 {[%emt 0:01:44]} 43. Kxe4 {[%emt 0:00:28]} Nb5 {[%emt 0:00:08]} 44. Bc2 {[%emt 0:02:28]} Be6 {[%emt 0:03:51]} 45. Ke3 {[%emt 0:00:50]} Bg4 {[%emt 0:01:25]} 46. Nd2 {[%emt 0:01:44]} Nc3 {[%emt 0:01:55]} 47. Bb3 {[%emt 0:03:00]} Nd5+ {[%emt 0:01:09]} 48. Ke4 {[%emt 0:00:18]} Bf5+ {[%emt 0:00:23]} 49. Kf3 {[%emt 0:00:12]} Kc5 {[%emt 0:01:07]} 50. Nf1 {[%emt 0:04:08]} Kd4 {[%emt 0:03:20]} 51. Bxd5 {[%emt 0:00:51]} Kxd5 {[%emt 0:00:07]} 52. Ne3+ {[%emt 0:00:07]} Ke6 {[%emt 0:00:48]} 53. Nc4 {[%emt 0:00:15]} b3 {[%emt 0:02:41]} 54. Ke3 {[%emt 0:00:59]} Kd5 {[%emt 0:00:12]} 55. Nb2 {[%emt 0:00:10]} e6 {[%emt 0:00:06]} 56. Nd1 {[%emt 0:00:52]} Kc4 {[%emt 0:00:08]} 57. Nb2+ {[%emt 0:02:17]} Kc3 {[%emt 0:00:14]} 58. Na4+ {[%emt 0:00:10]} Kc2 {[%emt 0:00:11] Ke4 [%emt 00:00:21]} 0-1

[Event "105th British-ch 2018"]
[Site "Hull"]
[Date "2018.07.29"]
[Round "2"]
[White "Iyengar, Ilya"]
[Black "Wall, Tim P"]
[Result "0-1"]
[ECO "B00"]
[WhiteElo "2017"]
[BlackElo "2234"]
[Annotator "NA"]
[PlyCount "61"]
[EventDate "2018.07.28"]
[EventType "swiss"]
[EventCountry "GBR"]
[SourceTitle "playchess.com"]
[Source "ChessBase"]
[SourceQuality "1"]
[TimeControl "40/5400+30:1800+30"]

1. d4 {[%emt 0:09:03]} b6 {[%emt 0:01:15]} 2. e4 {[%emt 0:00:48]} Bb7 {[%emt 0:00:11]} 3. f3 {[%emt 0:00:19]} e5 {[%emt 0:07:11]} 4. Be3 {[%emt 0:10:02]} exd4 {[%emt 0:01:20]} 5. Bxd4 {[%emt 0:00:13]} Nc6 {[%emt 0:00:44]} 6. Bf2 {[%emt 0:00:39]} Nf6 {[%emt 0:07:57]} 7. Bc4 Bb4+ {[%emt 0:03:51]} 8. c3 {[%emt 0:01:59]} Be7 {[%emt 0:05:41]} 9. Ne2 {[%emt 0:00:35]} O-O {[%emt 0:01:13]} 10. O-O {[%emt 0:04:34]} Ne5 {[%emt 0:04:06]} 11. Bb3 {[%emt 0:03:21]} d5 {[%emt 0:01:03]} 12. Bd4 {[%emt 0:07:56]} Bc5 {[%emt 0:16:41]} 13. Bxc5 {[%emt 0:15:50]} bxc5 {[%emt 0:00:13]} 14. exd5 {[%emt 0:00:07]} c4 {[%emt 0:06:23]} 15. Bc2 {[%emt 0:02:45]} Nxd5 {[%emt 0:06:23]} 16. Qd4 {[%emt 0:04:30]} Qe7 {[%emt 0:03:38]} 17. Na3 {[%emt 0:19:00]} c5 {[%emt 0:08:56]} 18. Qf2 {[%emt 0:00:50]} Nd3 {[%emt 0:01:44]} 19. Bxd3 {[%emt 0:00:23]} cxd3 {[%emt 0:00:09]} 20. Ng3 {[%emt 0:02:54]} Nf4 {[%emt 0:01:30]} 21. Rfe1 {[%emt 0:00:55]} Qg5 {[%emt 0:00:48]} 22. Nc4 {[%emt 0:01:02]} f6 {[%emt 0:10:32]} 23. Nd6 {[%emt 0:05:07]} Rab8 {[%emt 0:04:26]} 24. Re7 {[%emt 0:03:53]} Bc8 {[%emt 0:01:44]} 25. Nde4 {[%emt 0:04:38]} Qg6 {[%emt 0:00:35]} 26. b3 {[%emt 0:00:28]} Bh3 {[%emt 0:00:46]} 27. Qxc5 {[%emt 0:00:49]} Bxg2 {[%emt 0:00:13]} 28. Kf2 {[%emt 0:00:38]} Bh3 {[%emt 0:02:01]} 29. Qc4+ {[%emt 0:00:32]} Kh8 {[%emt 0:00:06]} 30. Nd2 {[%emt 0:00:34]} Qh6 {[%emt 0:00:38]} 31. Rae1 {[%emt 0:00:28]} 0-1

[Event "105th British-ch 2018"]
[Site "Hull"]
[Date "2018.07.29"]
[Round "2"]
[White "Burke, Mitchell R"]
[Black "Tozer, Philip"]
[Result "1/2-1/2"]
[ECO "A03"]
[WhiteElo "1988"]
[BlackElo "2142"]
[Annotator "NA"]
[PlyCount "56"]
[EventDate "2018.07.28"]
[EventType "swiss"]
[EventCountry "GBR"]
[SourceTitle "playchess.com"]
[Source "ChessBase"]
[SourceQuality "1"]
[TimeControl "40/5400+30:1800+30"]

1. f4 {[%emt 0:00:21]} d5 {[%emt 0:00:09]} 2. Nf3 {[%emt 0:00:31]} Nf6 {[%emt 0:00:22]} 3. g3 {[%emt 0:00:53]} g6 {[%emt 0:00:05]} 4. Bg2 {[%emt 0:00:13]} Bg7 {[%emt 0:00:07]} 5. O-O {[%emt 0:01:19]} O-O {[%emt 0:00:12]} 6. d3 {[%emt 0:02:04]} c5 {[%emt 0:00:08]} 7. c3 {[%emt 0:04:04]} Nc6 {[%emt 0:01:00]} 8. Na3 {[%emt 0:04:43]} b6 {[%emt 0:23:30]} 9. Qe1 {[%emt 0:02:25]} Bb7 {[%emt 0:08:22]} 10. h3 {[%emt 0:05:33]} Qc7 {[%emt 0:07:01]} 11. g4 {[%emt 0:14:10]} e5 {[%emt 0:11:27]} 12. Nb5 {[%emt 0:18:26]} Qd7 {[%emt 0:12:21]} 13. fxe5 {[%emt 0:03:13]} Nxe5 {[%emt 0:03:08]} 14. Nxe5 {[%emt 0:00:26]} Qxb5 {[%emt 0:06:03]} 15. g5 {[%emt 0:00:05]} Nh5 {[%emt 0:02:23]} 16. Ng4 {[%emt 0:05:16]} f6 {[%emt 0:04:54]} 17. gxf6 {[%emt 0:03:25]} Nxf6 {[%emt 0:00:09]} 18. Nh6+ {[%emt 0:06:19]} Kh8 {[%emt 0:00:05]} 19. Qh4 {[%emt 0:00:05]} Qd7 {[%emt 0:08:14]} 20. Bg5 {[%emt 0:00:43]} Ng8 {[%emt 0:05:36]} 21. Ng4 {[%emt 0:02:27]} d4 {[%emt 0:02:18]} 22. Bxb7 {[%emt 0:01:14]} Qxb7 {[%emt 0:00:05]} 23. c4 {[%emt 0:00:03]} Rae8 {[%emt 0:03:17]} 24. Rxf8 {[%emt 0:02:07]} Rxf8 {[%emt 0:00:09]} 25. Rf1 {[%emt 0:00:12]} Rxf1+ {[%emt 0:02:56]} 26. Kxf1 {[%emt 0:00:04]} Qf7+ {[%emt 0:00:08]} 27. Qf2 {[%emt 0:00:27]} Qe6 {[%emt 0:00:22]} 28. Qf3 {[%emt 0:01:14]} h6 {[%emt 0:05:49]} 1/2-1/2

[Event "105th British-ch 2018"]
[Site "Hull"]
[Date "2018.07.29"]
[Round "2"]
[White "De Coverly, Roger D"]
[Black "Longson, Sarah N"]
[Result "0-1"]
[ECO "C78"]
[WhiteElo "1920"]
[BlackElo "2123"]
[Annotator "NA"]
[PlyCount "62"]
[EventDate "2018.07.28"]
[EventType "swiss"]
[EventCountry "GBR"]
[SourceTitle "playchess.com"]
[Source "ChessBase"]
[SourceQuality "1"]
[TimeControl "40/5400+30:1800+30"]

1. e4 {[%emt 0:00:03]} e5 {[%emt 0:00:03]} 2. Nf3 {[%emt 0:00:06]} Nc6 {[%emt 0:00:05]} 3. Bb5 {[%emt 0:00:06]} a6 {[%emt 0:00:16]} 4. Ba4 {[%emt 0:00:05]} Nf6 {[%emt 0:00:23]} 5. O-O {[%emt 0:00:05]} b5 {[%emt 0:00:09]} 6. Bb3 {[%emt 0:00:05]} Bc5 {[%emt 0:00:06]} 7. Nxe5 {[%emt 0:00:12]} Nxe5 {[%emt 0:00:41]} 8. d4 {[%emt 0:00:05]} Bxd4 {[%emt 0:00:35]} 9. Qxd4 {[%emt 0:00:06]} d6 {[%emt 0:00:35]} 10. f4 {[%emt 0:01:35]} Nc6 {[%emt 0:01:41]} 11. Qc3 {[%emt 0:05:17]} Bb7 {[%emt 0:00:39]} 12. e5 {[%emt 0:01:17]} Ne4 {[%emt 0:00:58]} 13. Qe3 {[%emt 0:02:52]} Na5 {[%emt 0:01:15]} 14. exd6 {[%emt 0:11:46]} O-O {[%emt 0:08:35]} 15. Nd2 {[%emt 0:03:05]} Nxd6 {[%emt 0:06:04]} 16. c3 {[%emt 0:00:37]} Nxb3 {[%emt 0:00:46]} 17. axb3 {[%emt 0:01:24]} Re8 {[%emt 0:02:42]} 18. Qf2 {[%emt 0:01:27]} Qf6 {[%emt 0:02:33]} 19. b4 {[%emt 0:02:39]} Re7 {[%emt 0:07:21]} 20. Nf3 {[%emt 0:05:27]} Rae8 {[%emt 0:03:08]} 21. Ne5 {[%emt 0:11:19]} Qf5 {[%emt 0:09:05]} 22. Qc5 {[%emt 0:14:55]} f6 {[%emt 0:10:33]} 23. Nf3 {[%emt 0:02:42]} Qg4 {[%emt 0:12:37]} 24. h3 {[%emt 0:04:16]} Qg6 {[%emt 0:03:20]} 25. f5 {[%emt 0:08:36]} Nxf5 {[%emt 0:03:24]} 26. Bf4 {[%emt 0:01:31]} Re2 {[%emt 0:01:35]} 27. g4 {[%emt 0:02:28]} Ne3 {[%emt 0:02:13]} 28. Bxe3 {[%emt 0:04:14]} R2xe3 {[%emt 0:04:22]} 29. Nh4 {[%emt 0:02:53]} Qe4 {[%emt 0:02:51]} 30. Kh2 {[%emt 0:00:29]} Qc2+ {[%emt 0:00:49]} 31. Kg1 {[%emt 0:00:34]} Rg3+ {[%emt 0:00:11]} 0-1

[Event "105th British-ch 2018"]
[Site "Hull"]
[Date "2018.07.30"]
[Round "3"]
[White "Arkell, Keith C"]
[Black "Toma, Katarzyna"]
[Result "1-0"]
[ECO "D76"]
[WhiteElo "2406"]
[BlackElo "2274"]
[Annotator "ChessBase"]
[PlyCount "129"]
[EventDate "2018.07.28"]
[EventType "swiss"]
[EventCountry "GBR"]
[SourceTitle "playchess.com"]
[Source "ChessBase"]
[SourceQuality "1"]
[TimeControl "40/5400+30:1800+30"]

1. d4 {[%emt 0:01:04]} Nf6 {[%emt 0:00:08]} 2. Nf3 {[%emt 0:00:05]} g6 {[%emt 0:00:08]} 3. c4 {[%emt 0:00:05]} Bg7 {[%emt 0:00:09]} 4. g3 {[%emt 0:00:05]} d5 {[%emt 0:00:55]} 5. cxd5 {[%emt 0:00:06]} Nxd5 {[%emt 0:00:05]} 6. Nc3 {[%emt 0:00:03]} Nb6 {[%emt 0:00:38]} 7. Bg2 {[%emt 0:00:05]} Nc6 {[%emt 0:00:10]} 8. e3 {[%emt 0:00:04]} O-O {[%emt 0:00:11]} 9. O-O {[%emt 0:00:04]} Re8 {[%emt 0:00:22]} 10. b3 {[%emt 0:00:05]} e5 {[%emt 0:00:49]} 11. Nxe5 {[%emt 0:00:05]} Nxe5 {[%emt 0:00:10]} 12. dxe5 {[%emt 0:00:04]} Qxd1 {[%emt 0:00:54]} 13. Rxd1 {[%emt 0:00:04]} Bxe5 {[%emt 0:00:08]} 14. Bb2 {[%emt 0:00:05]} c6 {[%emt 0:00:27]} 15. Rd2 {[%emt 0:00:08]} Bf5 {[%emt 0:01:12]} 16. Ne2 {[%emt 0:00:56]} Bxb2 {[%emt 0:03:05]} 17. Rxb2 {[%emt 0:00:08]} a5 {[%emt 0:07:27]} 18. Nd4 {[%emt 0:00:20]} Be4 {[%emt 0:06:47]} 19. f3 {[%emt 0:01:48]} Bd3 {[%emt 0:01:45]} 20. Kf2 {[%emt 0:02:10]} f5 {[%emt 0:03:54]} 21. Rd1 {[%emt 0:02:18]} Ba6 {[%emt 0:00:09]} 22. f4 {[%emt 0:01:22]} Rad8 {[%emt 0:02:20]} 23. Rbd2 {[%emt 0:02:00]} Rd7 {[%emt 0:02:23]} 24. Rc1 {[%emt 0:05:39]} Red8 {[%emt 0:06:57]} 25. h3 {[%emt 0:02:19]} a4 {[%emt 0:03:16]} 26. g4 {[%emt 0:00:13]} axb3 {[%emt 0:00:16]} 27. axb3 {[%emt 0:00:03]} Nd5 {[%emt 0:01:40]} 28. Bxd5+ {[%emt 0:01:41]} Rxd5 {[%emt 0:00:05]} 29. b4 {[%emt 0:00:15]} fxg4 {[%emt 0:04:14]} 30. hxg4 {[%emt 0:00:06]} h5 {[%emt 0:02:24]} 31. Rg1 {[%emt 0:04:01]} Kf7 {[%emt 0:04:31]} 32. Kf3 {[%emt 0:00:37]} c5 {[%emt 0:19:18]} 33. bxc5 {[%emt 0:00:06]} Rxc5 {[%emt 0:00:05]} 34. gxh5 {[%emt 0:01:01]} Rxh5 {[%emt 0:00:13]} 35. Rc2 {[%emt 0:04:17]} Rd7 {[%emt 0:01:27]} 36. Rc3 {[%emt 0:08:31]} b5 {[%emt 0:12:43]} 37. Kg3 {[%emt 0:02:13]} Bb7 {[%emt 0:00:35]} 38. Rb1 {[%emt 0:01:36]} Be4 {[%emt 0:06:31]} 39. Rxb5 {[%emt 0:03:49]} Rxb5 {[%emt 0:00:20]} 40. Nxb5 {[%emt 0:00:05]} Rd3 {[%emt 0:00:07]} 41. Kg4 {[%emt 0:16:01]} Kf6 {[%emt 0:07:25]} 42. Rxd3 {[%emt 0:05:02]} Bxd3 {[%emt 0:00:04]} 43. Nd4 {[%emt 0:00:13]} Be4 {[%emt 0:00:51]} 44. Nf3 {[%emt 0:00:20]} Bf5+ {[%emt 0:02:50]} 45. Kg3 {[%emt 0:00:06]} Bc2 {[%emt 0:02:04]} 46. Kf2 {[%emt 0:01:26]} Bd3 {[%emt 0:01:12]} 47. Ng5 {[%emt 0:00:26]} Bc4 {[%emt 0:04:29]} 48. e4 {[%emt 0:01:37]} Bb3 {[%emt 0:00:40]} 49. Ke3 {[%emt 0:00:06]} Ba2 {[%emt 0:00:09]} 50. Kd4 {[%emt 0:00:06]} Bb3 {[%emt 0:00:24]} 51. Kc5 {[%emt 0:00:25]} Bc2 {[%emt 0:01:14]} 52. Kd5 {[%emt 0:00:43]} Bd3 {[%emt 0:02:04]} 53. Nf3 {[%emt 0:00:28]} Bb1 {[%emt 0:04:15]} 54. Nd4 {[%emt 0:01:06]} Kf7 {[%emt 0:03:03]} 55. e5 {[%emt 0:06:37]} Ba2+ {[%emt 0:00:04]} 56. Kd6 {[%emt 0:00:14]} g5 {[%emt 0:01:01]} 57. f5 {[%emt 0:00:51]} g4 {[%emt 0:00:10]} 58. Ne2 {[%emt 0:01:41]} Bb3 {[%emt 0:01:56]} 59. Ng3 {[%emt 0:00:09]} Bc2 {[%emt 0:00:54]} 60. Kd5 {[%emt 0:04:17]} Ke7 {[%emt 0:01:07]} 61. Ne4 {[%emt 0:00:33]} Bb3+ {[%emt 0:01:31]} 62. Kd4 {[%emt 0:00:07]} Ba4 {[%emt 0:04:04]} 63. Ke3 {[%emt 0:00:34]} Bd1 {[%emt 0:00:45]} 64. Kf4 {[%emt 0:00:07]} Kf7 {[%emt 0:03:54]} 65. Nf2 {[%emt 0:00:39]} 1-0